fUST/lending_fUST_20260201
["ID","MTS","AMOUNT","RATE_DAILY","PERIOD"]
[404156274,1769885448949,-630.0,0.00177044,120]
[404156275,1769885448958,-2151.0,0.00180044,120]
[404156276,1769885448967,-630.0,0.00180044,120]
[404156277,1769885448976,-399.235395,0.00180245,120]
[404156278,1769885448985,-2151.0,0.00183044,120]
[404156279,1769885448994,-630.0,0.00183044,120]
[404156280,1769885449004,-232.58,0.00184667,30]
[404156281,1769885449013,-2144.0,0.00186044,120]
[404156282,1769885449022,-630.0,0.00186044,120]
[404156283,1769885449031,-399.235395,0.00187455,120]
[404156284,1769885449043,-630.0,0.00189044,120]
[404156285,1769885449052,-399.235395,0.00194665,120]
[404156286,1769885449061,-1000.0,0.002,120]
[404156287,1769885449071,-399.235395,0.00201875,120]
[404156288,1769885449080,-399.235395,0.00209084,120]
[404156289,1769885449089,-399.235395,0.00216294,120]
[404156290,1769885449099,-399.235395,0.00223504,120]
[404156291,1769885449109,-5580.52,0.0023,30]
[404156292,1769885449118,-399.235395,0.00230714,120]
[404156293,1769885449130,-399.235395,0.00237924,120]
[404156294,1769885449140,-399.235395,0.00245133,120]
[404156295,1769885449149,-169.32172863,0.0025,120]
[404156296,1769885449158,-399.235395,0.00252343,120]
[404156297,1769885449169,-710.0,0.00259415,31]
[404156298,1769885449178,-399.235395,0.00259553,120]
[404156299,1769885449187,-399.235395,0.00266763,120]
[404156300,1769885449196,-546.82243782,0.00267938,120]
[404156301,1769885449206,-151.0,0.00273973,120]
[404156302,1769885449216,-151.0,0.00273973,120]
[404156303,1769885449225,-151.0,0.00273973,120]
[404156304,1769885449235,-151.0,0.00273973,120]
[404156305,1769885449244,-151.0,0.00273973,120]
[404156306,1769885449254,-151.0,0.00273973,120]
[404156307,1769885449263,-151.0,0.00273973,120]
[404156308,1769885449273,-151.0,0.00273973,120]
[404156309,1769885449282,-151.0,0.00273973,120]
[404156310,1769885449291,-151.0,0.00273973,120]
[404156311,1769885449301,-151.0,0.00273973,120]
[404156312,1769885449311,-151.0,0.00273973,120]
[404156313,1769885449320,-184.711374,0.00273973,120]
[404156314,1769885449330,-151.010726,0.00273973,7]
[404156315,1769885449339,-151.0,0.00273973,120]
[404156316,1769885449348,-151.0,0.00273973,120]
[404156317,1769885449358,-151.0,0.00273973,120]
[404156318,1769885449367,-178.305353,0.00273973,120]
[404156319,1769885449376,-151.0,0.00273973,120]
[404156320,1769885449389,-151.0,0.00273973,120]
[404156321,1769885449398,-151.0,0.00273973,120]
[404156322,1769885449408,-151.0,0.00273973,120]
[404156323,1769885449417,-151.0,0.00273973,120]
[404156324,1769885449427,-271.81383713,0.00273973,120]
[404156325,1769885449436,-151.0,0.00273973,120]
[404156326,1769885449445,-151.0,0.00273973,120]
[404156327,1769885449454,-151.0,0.00273973,120]
[404156328,1769885449463,-177.012067,0.00273973,120]
[404156329,1769885449472,-151.0,0.00273973,60]
[404156330,1769885449482,-182.864764,0.00273973,60]
[404156331,1769885449491,-151.0,0.00273973,120]
[404156332,1769885449500,-151.0,0.00273973,120]
[404156333,1769885449509,-151.0,0.00273973,120]
[404156334,1769885449518,-151.0,0.00273973,120]
[404156335,1769885449527,-151.0,0.00273973,120]
[404156336,1769885449537,-151.0,0.00273973,120]
[404156337,1769885449546,-151.0,0.00273973,120]
[404156338,1769885449555,-151.0,0.00273973,120]
[404156339,1769885449564,-151.0,0.00273973,120]
[404156340,1769885449574,-151.0,0.00273973,120]
[404156341,1769885449583,-151.0,0.00273973,120]
[404156342,1769885449592,-189.489535,0.00273973,120]
[404156343,1769885449601,-151.015349,0.00273973,2]
[404156344,1769885449611,-151.0,0.00273973,120]
[404156345,1769885449620,-238.641739,0.00273973,120]
[404156346,1769885449637,-399.235395,0.00273973,120]
[404156347,1769885449646,-1000.0,0.00299999,120]
[404156348,1769885449655,-40938.43642083,0.003,120]
[404156349,1769885449666,-500.0,0.003,120]
[404156350,1769885449676,-391.38159062,0.003,7]
[404156351,1769885449685,-500.0,0.003,120]
[404156352,1769885449695,-500.0,0.003,120]
[404156353,1769885449705,-500.0,0.003,120]
[404156354,1769885449715,-246.49166594,0.003,120]
[404156355,1769885449724,-500.0,0.003,120]
[404156356,1769885449734,-500.0,0.003,120]
[404156357,1769885449743,-405.15237696,0.003,120]
[404156358,1769885449752,-592.37513551,0.003,120]
[404156359,1769885449762,-229.61983999,0.003,120]
[404156360,1769885449771,-559.37924177,0.003,31]
[404156361,1769885449779,-500.0,0.003,7]
[404156362,1769885449789,-500.0,0.003,7]
[404156363,1769885449798,-500.0,0.003,7]
[404156364,1769885449807,-500.0,0.003,7]
[404156365,1769885449816,-500.0,0.003,7]
[404156366,1769885449825,-215.0,0.003014,120]
[404156367,1769885449834,-10972.86927256,0.0033488,73]
[404156368,1769885449844,-10387.13663552,0.00349998,120]
[404156369,1769885449853,-246.09856684,0.00371,30]
[404156370,1769885449862,-546.82243782,0.00383919,120]
[404156371,1769885449871,-5939.15435,0.0039791,118]
[404156372,1769885449887,-436.67,0.0039955,120]
[404156373,1769885449902,-206484.56545523,0.004,120]
[404156374,1769885449912,-191.64599833,0.004,120]
[404156375,1769885449922,-6828.017,0.0043,119]
[404156376,1769885449932,-10000.0,0.004988,120]
[404156377,1769885449942,-546.82243782,0.004999,120]
[404156378,1769885449952,-757.6518084,0.005,120]
[404156379,1769885449962,-215.0,0.005228,120]
[404156380,1769885449971,-500.0,0.00547945,120]
[404156381,1769885449980,-500.0,0.00547945,120]
[404156382,1769885449990,-500.0,0.00547945,120]
[404156383,1769885449999,-500.0,0.00547945,120]
[404156384,1769885450008,-500.0,0.00547945,120]
[404156385,1769885450018,-500.0,0.00547945,120]
[404156386,1769885450027,-500.0,0.00547945,120]
[404156387,1769885450036,-500.0,0.00547945,120]
[404156388,1769885450046,-500.0,0.00547945,120]
[404156389,1769885450055,-500.0,0.00547945,120]
[404156390,1769885450064,-500.0,0.00547945,120]
[404156391,1769885450073,-500.0,0.00547945,120]
[404156392,1769885450082,-500.0,0.00547945,120]
[404156393,1769885450091,-500.0,0.00547945,120]
[404156394,1769885450101,-500.0,0.00547945,120]
[404156395,1769885450110,-500.0,0.00547945,120]
[404156396,1769885450120,-500.0,0.00547945,120]
[404156397,1769885450130,-500.0,0.00547945,120]
[404156398,1769885450140,-500.0,0.00547945,120]
[404156399,1769885450150,-500.00000034,0.00547945,120]
[404156400,1769885450159,-1250.97344484,0.005959,30]
[404156401,1769885450170,-1000.0,0.00599999,120]
[404156402,1769885450179,-7500.56112309,0.0068,120]
[404156403,1769885450188,-3664.12774786,0.00693,120]
[404156404,1769885450198,-1000.0,0.00699999,120]
[404156405,1769885450208,-10500.0,0.0071,120]
[404156406,1769885450219,-1000.0,0.00719999,120]
[404156407,1769885450229,-50191.64692963,0.007288,120]
[404156408,1769885450238,-1000.0,0.00729999,120]
[404156409,1769885450248,-50000.0,0.007388,120]
[404156410,1769885450258,-10000.0,0.007399,120]
[404156411,1769885450267,-1000.0,0.00739999,120]
[404156412,1769885450277,-215.0,0.007441,120]
[404156413,1769885450286,-1000.0,0.00745,120]
[404156414,1769885450296,-50000.0,0.007488,120]
[404156415,1769885450305,-9507.18571642,0.007489,120]
[404156416,1769885450395,-1779.57846019,0.00036103,20]
[404156417,1769885450565,-3079.993076,0.00036103,20]
[404156418,1769885450575,-196.0,0.00054379,120]
[404156419,1769885450584,-40492.81428358,0.007489,120]
[404156420,1769885450593,-1000.0,0.0075,120]
[404156421,1769885450704,-200.0,0.00811979,120]
[404156422,1769885450714,-2314.05,0.00822239,94]
[404156423,1769885451014,-1427.13190439,0.00822239,94]
[404156424,1769885451023,-152.0,0.0083,120]
[404156425,1769885451033,-152.0,0.0093,120]
[404156426,1769885451042,-215.0,0.009655,120]
[404156427,1769885451051,-1250.97344484,0.011464,30]
[404156428,1769885451061,-215.0,0.011869,120]
[404156429,1769885451073,-200.0,0.01192004,120]
[404156430,1769885451082,-13340.51,0.01273,116]
[404156431,1769885451092,-6622.39058,0.01361,65]
[404156432,1769885451102,-215.0,0.014083,120]
[404156433,1769885451112,-6027.0,0.0142286,106]
[404156434,1769885451122,-8856.79407077,0.01488076,77]
[404156435,1769885451275,-300.56478944,0.000177,2]
[404156436,1769885451284,-500.0,0.000177,2]
[404156437,1769885451294,-500.0,0.000177,2]
[404156438,1769885451303,-500.0,0.000177,2]
[404156439,1769885451313,-500.0,0.000177,2]
[404156440,1769885451322,-500.0,0.000177,2]
[404156441,1769885451332,-500.0,0.000177,2]
[404156442,1769885451341,-500.0,0.000177,2]
[404156443,1769885451350,-500.0,0.000177,2]
[404156444,1769885451360,-500.0,0.000177,2]
[404156445,1769885451369,-500.0,0.000177,2]
[404156446,1769885451378,-500.0,0.000177,2]
[404156447,1769885451390,-808.13,0.00033016,3]
[404156448,1769885451399,-508.3023,0.00033026,2]
[404156449,1769885451409,-508.3023,0.00033026,4]
[404156450,1769885451419,-225.28,0.00033864,60]
[404156451,1769885451428,-225.28,0.00034064,60]
[404156452,1769885451438,-225.28,0.00034164,60]
[404156453,1769885451447,-225.28,0.00034264,60]
[404156454,1769885451460,-225.28,0.00034364,60]
[404156455,1769885451469,-321.94,0.0004,30]
[404156456,1769885451479,-281.57838686,0.00040835,2]
[404156457,1769885451488,-234.67,0.00041464,120]
[404156458,1769885451498,-234.67,0.00041564,120]
[404156459,1769885451507,-234.67,0.00041664,120]
[404156460,1769885451516,-234.67,0.00041864,120]
[404156461,1769885451525,-321.94,0.00042,30]
[404156462,1769885451534,-321.94,0.000441,30]
[404156463,1769885451543,-321.94,0.00046305,30]
[404156464,1769885451553,-321.80387069,0.00051312,2]
[404156465,1769885451562,-196.0,0.00057098,120]
[404156466,1769885451571,-150.154,0.00168044,120]
[404156467,1769885451580,-500.0,0.003,7]
[404156468,1769885451589,-4137.40592923,0.01488076,77]
[404156469,1769885451598,-6578.495,0.016,98]
[404156470,1769885451607,-215.0,0.016297,120]
[404156471,1769885451617,-14613.8,0.016931,81]
[404156472,1769885451628,-1250.97344484,0.016969,30]
[404156473,1769885451641,-1001.31416643,0.01741797,30]
[404156474,1769885451650,-6806.235,0.018,61]
[404156475,1769885451660,-157.82282567,0.01807726,120]
[404156476,1769885451670,-157.82282567,0.01831781,120]
[404156477,1769885451680,-215.0,0.01851,120]
[404156478,1769885451690,-157.82282567,0.01855808,120]
[404156479,1769885451700,-157.82282567,0.01879836,120]
[404156480,1769885451712,-7417.51,0.0190338,66]
[404156481,1769885451721,-152.0,0.0193,120]
[404156482,1769885451731,-14568.6174,0.0198,76]
[404156483,1769885451740,-155.0,0.02,120]
[404156484,1769885451750,-2000.0,0.02,120]
[404156485,1769885451759,-215.0,0.020724,120]
[404156486,1769885451768,-155.0,0.02222,120]
[404156487,1769885451777,-7461.18210983,0.022316,91]
[404156488,1769885451799,-500.0,0.000177,2]
[404156489,1769885451808,-500.0,0.000177,2]
[404156490,1769885451944,-500.0,0.000177,2]
[404156491,1769885451954,-172.21662371,0.000177,2]
[404156492,1769885451964,-500.0,0.000177,2]
[404156493,1769885451975,-500.0,0.000177,2]
[404156494,1769885451985,-500.0,0.000177,2]
[404156495,1769885451996,-500.0,0.000177,2]
[404156496,1769885452006,-500.0,0.000177,2]
[404156497,1769885452016,-500.0,0.000177,2]
[404156498,1769885452026,-500.0,0.000177,2]
[404156499,1769885452041,-500.0,0.000177,2]
[404156500,1769885452052,-500.0,0.000177,2]
[404156501,1769885452063,-500.0,0.000177,2]
[404156502,1769885452074,-508.3023,0.00033026,5]
[404156503,1769885452084,-225.28,0.00033764,60]
[404156504,1769885452097,-225.28,0.00034464,60]
[404156505,1769885452109,-225.28,0.00034564,60]
[404156506,1769885452120,-225.28,0.00034664,60]
[404156507,1769885452132,-225.28,0.00034764,60]
[404156508,1769885452150,-225.28,0.00034864,60]
[404156509,1769885452160,-225.28,0.00034964,60]
[404156510,1769885452170,-234.67,0.00041764,120]
[404156511,1769885452180,-234.67,0.00041964,120]
[404156512,1769885452190,-234.67,0.00042064,120]
[404156513,1769885452200,-234.67,0.00042164,120]
[404156514,1769885452210,-234.67,0.00042264,120]
[404156515,1769885452219,-234.67,0.00042364,120]
[404156516,1769885452228,-1213.1,0.0004499,10]
[404156517,1769885452238,-500.0,0.003,7]
[404156518,1769885452248,-241.35740263,0.003,7]
[404156519,1769885452258,-250.61175917,0.022316,91]
[404156520,1769885452267,-1250.97344484,0.022474,30]
[404156521,1769885452277,-2886.22641304,0.0228713,108]
[404156522,1769885452296,-234.67,0.00042464,120]
[404156523,1769885452306,-1547.09692147,0.0228713,108]
[404156524,1769885452317,-2809.86341149,0.0228713,108]
[404156525,1769885452327,-215.0,0.022938,120]
[404156526,1769885452337,-7692.1594,0.02414,112]
[404156527,1769885452346,-6366.0,0.0245677,89]
[404156528,1769885452355,-215.0,0.025152,120]
[404156529,1769885452364,-12767.326,0.0255,60]
[404156530,1769885452373,-215.0,0.027366,120]
[404156531,1769885452386,-155.0,0.02888,120]
[404156532,1769885452395,-152.0,0.0293,120]
[404156533,1769885452405,-215.0,0.029579,120]
[404156534,1769885452414,-201.65118851,0.029619,84]
[404156535,1769885452431,-225.28,0.00035064,60]
[404156536,1769885452447,-2310.0,0.029619,84]
[404156537,1769885453068,253.70097553,0.00036103,120]
[404156538,1769885453114,523.68846754,0.00036103,120]
[404156539,1769885464311,459.86281749,0.00013273,2]
[404156541,1769885466884,501.00416719,0.00013273,2]
[404156568,1769885539454,531.36801854,0.00036103,120]
[404156569,1769885545142,624.30464264,0.00036103,120]
[404156570,1769885550212,333.04850535,0.00036103,120]
[404156571,1769885550260,295.10860488,0.00036103,120]
[404156572,1769885550592,333.04850535,0.00036103,120]
[404156573,1769885550643,295.10860488,0.00036103,120]
[404156574,1769885550967,295.10860488,0.00036103,120]
[404156575,1769885551010,333.04850535,0.00036103,120]
[404156576,1769885551307,333.04850535,0.00036103,120]
[404156577,1769885551700,333.04850535,0.00036103,120]
[404156578,1769885552064,333.04850535,0.00036103,120]
[404156579,1769885552483,333.04850535,0.00036103,120]
[404156580,1769885552866,333.04850535,0.00036103,120]
[404156581,1769885553365,333.04850535,0.00036103,120]
[404156582,1769885553721,333.04850535,0.00036103,120]
[404156583,1769885554080,333.04850535,0.00036103,120]
[404156584,1769885554427,333.04850535,0.00036103,120]
[404156585,1769885554782,333.04850535,0.00036103,120]
[404156586,1769885555166,333.04850535,0.00036103,120]
[404156587,1769885555736,224.61730145,0.00036103,120]
[404156588,1769885556124,224.61730145,0.00036103,120]
[404156589,1769885556533,224.61730145,0.00036103,120]
[404156591,1769885583463,498.72867646,0.00013699,2]
[404156592,1769885583513,500.0,0.00013273,2]
[404156593,1769885583539,494.18265189,0.00013821,2]
[404156594,1769885583564,623.39633756,0.00013821,2]
[404156595,1769885583589,500.0,0.00013273,2]
[404156596,1769885583832,500.61810231,0.00013273,2]
[404156597,1769885585568,502.75778254,0.00013699,2]
[404156598,1769885591431,500.0,0.00013273,2]
[404156599,1769885594300,448.34041549,0.00013273,2]
[404156600,1769885596282,505.13492453,0.00036103,120]
[404156601,1769885596500,500.0,0.00013273,2]
[404156602,1769885596893,500.0,0.00013273,2]
[404156603,1769885599517,300.0,0.00013673,2]
[404156604,1769885599718,517.59719674,0.00036103,120]
[404156605,1769885599935,500.0,0.00013273,2]
[404156606,1769885601116,500.0,0.00013273,2]
[404156607,1769885603828,500.0,0.00013699,2]
[404156608,1769885603884,1000.0,0.00014247,2]
[404156609,1769885603934,671.11904907,0.00014795,2]
[404156610,1769885603956,828.88095093,0.00014795,2]
[404156611,1769885604000,2000.0,0.00015342,2]
[404156612,1769885646836,500.78172484,0.00013273,2]
[404156613,1769885646985,500.0,0.00013699,2]
[404156614,1769885647042,160.25817065,0.00013699,2]
[404156615,1769885647455,500.51551222,0.00013699,2]
[404156616,1769885649355,500.0,0.00013273,2]
[404156619,1769885665599,500.0,0.00024899,120]
[404156620,1769885665850,500.0,0.00024899,120]
[404156621,1769885670270,166.52425265,0.00036161,120]
[404156622,1769885670657,166.52425265,0.00036161,120]
[404156623,1769885677852,513.76023821,0.00036161,120]
[404156624,1769885703813,500.0,0.00013273,2]
[404156625,1769885703868,500.57921653,0.00013821,2]
[404156626,1769885703896,500.0,0.00013273,2]
[404156627,1769885704045,289.05987641,0.00013821,2]
[404156628,1769885704135,500.0,0.00013273,2]
[404156629,1769885706508,500.0,0.00013273,2]
[404156630,1769885706538,340.75088524,0.00013821,2]
[404156631,1769885706641,500.0,0.00013699,2]
[404156632,1769885707002,288.34858207,0.00013699,2]
[404156633,1769885713481,505.44328748,0.00036161,120]
[404156636,1769885715236,500.0028605,0.00036161,120]
[404156637,1769885718456,618.66116433,0.00036161,120]
[404156638,1769885720250,532.0335975,0.00036161,120]
[404156639,1769885720643,445.06114909,0.00036161,120]
[404156640,1769885722034,516.41268101,0.00036161,120]
[404156641,1769885723972,522.84420327,0.00036161,120]
[404156642,1769885742788,1090.83508111,0.00015,2]
[404156643,1769885742811,10000.01,0.00015,2]
[404156644,1769885742836,2709.95491889,0.00015,2]
[404156645,1769885751542,430.99607088,0.00036161,120]
[404156646,1769885759373,513.76485928,0.00036161,120]
[404156647,1769885762660,-5000.0,0.0001593,2]
[404156648,1769885763104,-227.23455622,0.00016011,2]
[404156649,1769885763135,-1200.0,0.0001609,2]
[404156650,1769885763165,-3433.56408931,0.00016091,2]
[404156651,1769885763231,500.0,0.00024899,120]
[404156652,1769885763407,500.0,0.00024899,120]
[404156653,1769885763643,500.0,0.00024899,120]
[404156654,1769885763916,500.0,0.00024899,120]
[404156655,1769885764560,500.0,0.00024899,120]
[404156656,1769885764658,505.80094581,0.00036161,120]
[404156657,1769885764791,500.0,0.00024899,120]
[404156658,1769885768604,-500.0,0.00013273,2]
[404156659,1769885768633,-320.39327364,0.00013273,2]
[404156660,1769885768663,-504.81393243,0.00013821,2]
[404156661,1769885768692,-825.084582,0.0001621,2]
[404156662,1769885768726,-300.0,0.00016253,2]
[404156663,1769885768756,-300.0,0.00016253,2]
[404156664,1769885768786,-300.0,0.00016253,2]
[404156665,1769885768816,-1718.22767628,0.00016254,2]
[404156666,1769885769197,500.0,0.00036161,120]
[404156668,1769885770640,566.48863203,0.00024899,120]
[404156669,1769885771423,-477.81508667,0.00016418,2]
[404156670,1769885771451,-580.5729529,0.00016435,2]
[404156671,1769885771478,-300.0,0.00016577,2]
[404156672,1769885771507,-300.0,0.00016578,2]
[404156673,1769885771538,-300.0,0.00016578,2]
[404156674,1769885771585,-300.0,0.00016578,2]
[404156675,1769885771618,-300.0,0.00016578,2]
[404156676,1769885771650,-300.0,0.00016578,2]
[404156677,1769885771681,-300.0,0.00016578,2]
[404156678,1769885771714,-300.0,0.00016578,2]
[404156679,1769885771745,-300.0,0.00016578,2]
[404156681,1769885771776,-300.0,0.00016578,2]
[404156682,1769885771812,-300.0,0.00016578,2]
[404156683,1769885771844,-300.0,0.00016578,2]
[404156684,1769885771875,-300.0,0.00016578,2]
[404156685,1769885772316,-300.0,0.00016578,2]
[404156686,1769885772343,-300.0,0.00016578,2]
[404156687,1769885772372,-300.0,0.00016578,2]
[404156688,1769885772400,-600.0,0.00016909,2]
[404156689,1769885772424,-860.06715601,0.00016954,2]
[404156690,1769885772448,-1045.03131522,0.00016971,2]
[404156691,1769885772472,-467.57009808,0.00017415,2]
[404156692,1769885772497,-841.62617655,0.00017415,2]
[404156693,1769885772522,-1529.00827736,0.00017491,2]
[404156694,1769885772547,-1857.83344928,0.00017506,2]
[404156695,1769885772570,-289.0,0.00017573,2]
[404156696,1769885772595,-188.83,0.00017591,3]
[404156697,1769885772622,-566.52,0.00017591,3]
[404156698,1769885772648,-300.0,0.00017599,2]
[404156699,1769885772675,-500.0,0.00017599,2]
[404156700,1769885772703,-500.0,0.00017599,2]
[404156701,1769885772735,-500.0,0.00017599,2]
[404156702,1769885772761,-406.02387482,0.00017599,2]
[404156703,1769885772790,-500.0,0.00017599,2]
[404156704,1769885772817,-500.0,0.00017599,2]
[404156705,1769885772842,-500.0,0.00017599,2]
[404156706,1769885772872,-500.0,0.00017599,2]
[404156707,1769885772898,-500.0,0.00017599,2]
[404156708,1769885772924,-500.0,0.00017599,2]
[404156709,1769885772947,-500.0,0.00017599,2]
[404156710,1769885772974,-500.0,0.00017599,2]
[404156711,1769885772998,-500.0,0.00017599,2]
[404156712,1769885773023,-500.0,0.00017599,2]
[404156713,1769885773052,-500.0,0.00017599,2]
[404156714,1769885773079,-500.0,0.00017599,2]
[404156715,1769885773108,-500.0,0.00017599,2]
[404156716,1769885773135,-500.0,0.00017599,2]
[404156717,1769885773166,-500.0,0.00017599,2]
[404156718,1769885773192,-500.0,0.00017599,2]
[404156719,1769885773218,-500.0,0.00017599,2]
[404156720,1769885773242,-500.0,0.00017599,2]
[404156721,1769885773266,-500.0,0.00017599,2]
[404156722,1769885773290,-550.78066426,0.00017599,2]
[404156723,1769885773316,-500.0,0.00017599,2]
[404156724,1769885773340,-533.45152503,0.00017599,2]
[404156725,1769885773368,-500.0,0.00017599,2]
[404156726,1769885773393,-500.0,0.00017599,2]
[404156727,1769885773418,-500.0,0.00017599,2]
[404156728,1769885773444,-500.0,0.00017599,2]
[404156729,1769885773473,-500.0,0.00017599,2]
[404156730,1769885773501,-500.0,0.00017599,2]
[404156731,1769885773528,-500.0,0.00017599,2]
[404156732,1769885773656,-500.0,0.00017599,2]
[404156733,1769885773682,-500.0,0.00017599,2]
[404156734,1769885773713,-500.0,0.00017599,2]
[404156735,1769885773739,-500.0,0.00017599,2]
[404156736,1769885773768,-500.0,0.00017599,2]
[404156737,1769885773796,-500.0,0.00017599,2]
[404156738,1769885773823,-500.0,0.00017599,2]
[404156739,1769885773855,-500.0,0.00017599,2]
[404156740,1769885773880,-500.0,0.00017599,2]
[404156741,1769885773907,-500.0,0.00017599,2]
[404156742,1769885773936,-500.0,0.00017599,2]
[404156743,1769885773966,-500.0,0.00017599,2]
[404156744,1769885773992,-500.0,0.00017599,2]
[404156745,1769885774019,-500.0,0.00017599,2]
[404156746,1769885774045,-500.0,0.00017599,2]
[404156747,1769885774074,-500.0,0.00017599,2]
[404156748,1769885774104,-500.0,0.00017599,2]
[404156749,1769885774130,-500.0,0.00017599,2]
[404156750,1769885774157,-500.0,0.00017599,2]
[404156751,1769885774183,-500.0,0.00017599,2]
[404156752,1769885774209,-500.0,0.00017599,2]
[404156753,1769885774238,-500.0,0.00017599,2]
[404156754,1769885774265,-500.0,0.00017599,2]
[404156755,1769885774292,-500.0,0.00017599,2]
[404156756,1769885774318,-500.0,0.00017599,2]
[404156757,1769885774343,-500.0,0.00017599,2]
[404156758,1769885774371,-500.0,0.00017599,2]
[404156759,1769885774397,-500.0,0.00017599,2]
[404156760,1769885774426,-500.0,0.00017599,2]
[404156761,1769885774451,-500.0,0.00017599,2]
[404156762,1769885774480,-500.0,0.00017599,2]
[404156763,1769885774508,-500.0,0.00017599,2]
[404156764,1769885774535,-500.0,0.00017599,2]
[404156765,1769885774564,-500.0,0.00017599,2]
[404156766,1769885774595,-500.0,0.00017599,2]
[404156767,1769885774627,-500.0,0.00017599,2]
[404156768,1769885774654,-500.0,0.00017599,2]
[404156769,1769885774684,-500.0,0.00017599,2]
[404156770,1769885774714,-500.0,0.00017599,2]
[404156771,1769885774744,-500.0,0.00017599,2]
[404156772,1769885774770,-500.0,0.00017599,2]
[404156773,1769885774795,-500.0,0.00017599,2]
[404156774,1769885774820,-500.0,0.00017599,2]
[404156775,1769885774846,-500.0,0.00017599,2]
[404156776,1769885774874,-500.0,0.00017599,2]
[404156777,1769885774901,-500.0,0.00017599,2]
[404156778,1769885774927,-500.0,0.00017599,2]
[404156779,1769885774953,-500.0,0.00017599,2]
[404156780,1769885774979,-64.25746339,0.00017599,2]
[404156781,1769885775032,-435.74253661,0.00017599,2]
[404156782,1769885775062,-500.0,0.00017599,2]
[404156783,1769885775091,-500.0,0.00017599,2]
[404156784,1769885775124,-277.90987987,0.00017599,2]
[404156785,1769885775152,-500.0,0.00017599,2]
[404156786,1769885775195,-500.0,0.00017599,2]
[404156787,1769885775230,-500.0,0.00017599,2]
[404156788,1769885775263,-291.44740216,0.00017599,2]
[404156789,1769885775293,-500.0,0.00017599,2]
[404156790,1769885775326,-500.0,0.00017599,2]
[404156791,1769885775358,-500.0,0.00017599,2]
[404156792,1769885775390,-500.0,0.00017599,2]
[404156793,1769885775421,-500.0,0.00017599,2]
[404156794,1769885775451,-500.0,0.00017599,2]
[404156795,1769885775487,-500.0,0.00017599,2]
[404156796,1769885775518,-500.0,0.00017599,2]
[404156797,1769885775550,-500.0,0.00017599,2]
[404156798,1769885775583,-500.0,0.00017599,2]
[404156799,1769885775613,-500.0,0.00017599,2]
[404156800,1769885775643,-500.0,0.00017599,2]
[404156801,1769885775671,-500.0,0.00017599,2]
[404156802,1769885775701,-500.0,0.00017599,2]
[404156803,1769885775734,-500.0,0.00017599,2]
[404156804,1769885775766,-500.0,0.00017599,2]
[404156805,1769885775800,-500.0,0.00017599,2]
[404156806,1769885775829,-232.03279403,0.00017599,2]
[404156807,1769885775864,-500.0,0.00017599,2]